bitfinex/quotes_ETHUSD_20251118
["timestamp","ask_amount","ask_price","bid_price","bid_amount"]
[1763453188768,0.7721,3044.7,3044.5,0.84232059]
[1763453189004,0.1949,3044.8,3044.5,0.84232059]
[1763453189305,0.682,3045.2,3043.8,0.0175269]
[1763453189306,1.469,3044.7,3044.6,0.84232059]
[1763453189510,0.1949,3044.9,3044.6,0.84232059]
[1763453189817,0.4871,3044.8,3044.7,0.6772085]
[1763453189975,0.4871,3044.8,3043.2,0.4946]
[1763453189976,0.4871,3044.8,3044.2,0.84232059]
[1763453190406,1.469,3044.7,3044.2,0.84232059]
[1763453190773,0.4871,3044.6,3044.2,0.84232059]
[1763453191502,0.4871,3044.6,3044.3,0.6775202]
[1763453191805,0.4871,3044.6,3044.4,0.6775202]
[1763453192002,0.4871,3044.6,3044.5,0.6775202]
[1763453192215,0.1949,3044.9,3044.5,0.6775202]
[1763453192406,1.185,3044.8,3044.6,0.69403951]
[1763453192703,0.1949,3045.5,3044.7,0.29413551]
[1763453192943,0.1949,3045.5,3045.4,0.84724226]
[1763453193105,0.4871,3046.0,3045.4,1.80744968]
[1763453193405,0.4871,3046.2,3045.8,1.12920906]
[1763453193593,0.682,3045.9,3045.8,1.80700239]
[1763453193803,0.682,3045.9,3045.8,0.67779333]
[1763453193976,0.682,3045.9,3044.9,1.12920906]
[1763453194308,0.4871,3045.8,3045.0,0.67836656]
[1763453194506,0.4871,3045.8,3045.1,0.67836656]
[1763453194822,0.4871,3045.8,3044.4,1.12920906]
[1763453194977,1.31249664,3045.5,3044.5,0.67916073]
[1763453195175,1.09513153,3045.4,3044.6,0.67916073]
[1763453195398,1.58223153,3045.4,3044.0,1.12920906]
[1763453195618,0.4871,3045.3,3044.1,0.67916148]
[1763453195904,0.4871,3045.3,3044.2,0.67916148]
[1763453196308,0.4871,3045.3,3044.3,0.67916148]
[1763453196476,0.4871,3045.3,3044.4,0.67916148]
[1763453196678,0.4871,3045.3,3044.5,0.67916148]
[1763453196880,0.4871,3045.3,3044.6,0.67916148]
[1763453197106,0.186,3044.1,3044.0,1.12920906]
[1763453197305,0.186,3044.1,3044.0,1.8081144]
[1763453197513,0.186,3044.1,3044.0,0.67890534]
[1763453197695,0.186,3044.1,3044.0,1.8081144]
[1763453198019,0.186,3044.1,3044.0,1.12920906]
[1763453198201,1.09513153,3045.4,3044.0,1.8081144]
[1763453198202,0.186,3044.5,3044.0,1.8081144]
[1763453198722,0.4709,3044.4,3044.1,0.67890534]
[1763453199086,0.4709,3044.4,3044.2,0.67890534]
[1763453199286,0.4709,3044.4,3043.8,0.001]
[1763453199925,1.51106034,3044.3,3043.8,0.001]
[1763453200087,1.47,3044.3,3043.8,0.001]
[1763453200456,1.47,3044.3,3043.1,0.001]
[1763453200457,10.04432266,3044.1,3043.1,0.001]
[1763453200722,0.51196169,3044.2,3042.5,0.001]
[1763453200723,0.405504,3043.5,3042.5,0.001]
[1763453200911,0.186,3042.9,3042.5,0.001]
[1763453201113,0.6569,3042.9,3042.5,0.001]
[1763453201426,1.062404,3042.9,3042.5,0.001]
[1763453201623,0.405504,3042.8,3041.7,0.17166553]
[1763453201823,0.1001,3041.8,3041.7,0.17166553]
[1763453202128,0.876404,3042.8,3041.7,0.85000724]
[1763453202129,0.4709,3042.8,3041.7,0.85000724]
[1763453202287,0.186,3042.9,3041.7,0.17166553]
[1763453202288,1.9409,3042.7,3041.7,0.17166553]
[1763453202488,0.1527,3041.8,3041.7,0.17166553]
[1763453202708,1.6237,3041.8,3041.7,0.84900054]
[1763453202907,1.6237,3041.8,3041.7,0.17166553]
[1763453202908,2.0946,3041.8,3041.7,0.17166553]
[1763453203121,1.6237,3041.8,3041.7,0.17166553]
[1763453203423,0.591504,3042.9,3041.7,0.17166553]
[1763453203424,0.186,3042.1,3041.7,0.17166553]
[1763453203620,1.185,3041.8,3041.7,0.17166553]
[1763453203997,1.185,3041.8,3041.7,0.8484769]
[1763453204217,1.471,3041.8,3041.7,0.8484769]
[1763453204537,1.9419,3041.8,3041.7,0.17166553]
[1763453205414,0.4709,3041.8,3040.7,0.01660413]
[1763453205617,1.185,3041.7,3040.8,0.84781046]
[1763453205822,0.286,3041.6,3040.9,0.69235725]
[1763453206040,0.4709,3042.2,3041.0,0.67574233]
[1763453206242,1.472,3042.1,3041.1,0.67574233]
[1763453206541,1.472,3042.1,3041.2,0.67574233]
[1763453207227,0.405504,3041.9,3041.2,0.67574233]
[1763453207424,0.405504,3041.9,3040.8,0.17206813]
[1763453207631,0.405504,3041.9,3041.6,0.001]
[1763453207632,0.4709,3041.8,3041.6,0.001]
[1763453209139,1.472,3041.7,3041.6,0.001]
[1763453209340,1.51309544,3041.7,3041.6,0.001]
[1763453209668,2.58789898,3041.7,3041.3,0.001]
[1763453209811,0.876404,3041.6,3041.3,0.001]
[1763453210450,0.405504,3041.4,3041.3,0.001]
[1763453210608,0.405504,3041.5,3041.3,0.001]
[1763453210814,0.876404,3041.4,3041.3,0.001]
[1763453211151,0.4709,3041.4,3041.3,0.001]
[1763453212272,0.6236,3041.4,3041.3,0.001]
[1763453212675,2.0956,3041.4,3041.3,0.001]
[1763453213053,2.71477368,3041.4,3041.3,0.001]
[1763453213267,1.31249664,3041.3,3041.0,0.001]
[1763453213454,0.0015,3041.1,3041.0,0.001]
[1763453213652,0.44810754,3041.1,3041.0,0.001]
[1763453213986,0.44810754,3041.1,3040.0,2.75420906]
[1763453213987,0.405504,3040.6,3040.0,1.625]
[1763453214271,0.405504,3040.2,3040.0,1.625]
[1763453214439,0.405504,3040.2,3039.9,0.17208804]
[1763453214635,0.405504,3040.0,3038.7,1.12920906]
[1763453214873,0.90699264,3040.6,3038.7,1.12920906]
[1763453214874,0.405504,3039.8,3038.7,1.12920906]
[1763453215077,0.405504,3039.6,3038.7,1.12920906]
[1763453215285,0.405504,3039.7,3038.7,1.12920906]
[1763453215438,0.48952383,3039.6,3038.7,1.12920906]
[1763453216179,0.4484,3039.6,3038.7,1.12920906]
[1763453217037,0.1715,3038.9,3038.6,1.12920906]
[1763453217242,0.4565,3038.9,3038.6,1.12920906]
[1763453218042,0.405504,3039.6,3038.6,1.12920906]
[1763453218252,1.472,3039.5,3038.6,1.12920906]
[1763453218645,1.9183,3039.5,3038.6,1.12920906]
[1763453218841,1.877504,3039.4,3038.6,1.12920906]
[1763453219041,1.8465,3039.4,3038.6,1.12920906]
[1763453219292,1.472,3039.3,3038.6,1.12920906]
[1763453219491,1.472,3039.3,3038.3,0.4611]
[1763453219492,0.0608,3038.9,3038.5,1.12920906]
[1763453219991,0.4709,3039.2,3038.5,1.12920906]
[1763453220154,0.1526,3038.9,3038.4,1.12920906]
[1763453220350,0.1541,3038.9,3038.4,1.12920906]
[1763453220552,1.025804,3038.9,3038.8,1.49689699]
[1763453220881,0.405504,3038.8,3037.0,3.3807835]
[1763453221078,0.405504,3038.8,3037.3,0.001]
[1763453221079,0.591504,3037.7,3037.3,0.001]
[1763453221279,0.876504,3037.7,3037.3,0.001]
[1763453221480,1.324204,3037.7,3037.3,0.001]
[1763453221799,0.186,3037.7,3037.3,0.001]
[1763453222003,1.472,3037.7,3037.3,0.001]
[1763453222706,1.473,3037.7,3037.6,0.867604]
[1763453222870,1.473,3037.7,3037.6,0.001]
[1763453224090,0.4477,3038.3,3037.6,0.001]
[1763453224308,0.04114278,3038.2,3037.6,0.001]
[1763453224482,1.473,3038.2,3037.6,0.001]
[1763453224884,0.186,3038.6,3037.6,0.4621]
[1763453225111,1.473,3038.5,3037.6,2.4983017]
[1763453225405,0.1526,3038.9,3037.8,0.405504]
[1763453225610,1.187,3038.4,3037.9,1.59030906]
[1763453225906,0.286,3038.3,3038.0,1.80923864]
[1763453226111,0.286,3038.3,3038.1,0.68002958]
[1763453226293,0.286,3038.3,3038.2,0.68002958]
[1763453226803,0.286,3038.3,3037.9,1.12920906]
[1763453227173,0.1556,3039.1,3038.2,0.1914]
[1763453227374,1.51413195,3039.0,3038.4,1.12920906]
[1763453227710,1.51413195,3039.0,3038.5,0.68002958]
[1763453227711,1.9079,3039.0,3038.5,0.68002958]
[1763453227916,0.4956,3038.9,3038.6,0.68002958]
[1763453228076,0.4956,3038.9,3038.0,1.32060906]
[1763453228271,0.4956,3038.9,3038.1,0.68131205]
[1763453228477,0.4956,3038.9,3038.2,1.81052111]
[1763453228708,0.4956,3038.9,3038.3,0.68131205]
[1763453229114,0.4956,3038.9,3038.4,0.68131205]
[1763453229405,0.4956,3038.9,3038.0,0.90699264]
[1763453229406,0.4956,3038.9,3038.5,0.68131205]
[1763453229605,0.4956,3038.9,3038.6,0.68131205]
[1763453229773,0.4956,3038.9,3038.7,0.68131205]
[1763453229974,0.4956,3038.9,3038.8,0.68131205]
[1763453230271,1.473,3039.0,3038.3,1.81052111]
[1763453230471,0.492,3038.9,3038.5,1.12920906]
[1763453230708,1.473,3039.0,3038.6,0.68418973]
[1763453230871,0.5331333,3038.9,3038.7,0.68418973]
[1763453231076,0.0049,3038.6,3038.2,1.12920906]
[1763453231296,0.492,3038.9,3038.0,1.69659021]
[1763453231297,0.286,3038.5,3038.3,0.68430315]
[1763453231506,0.691504,3038.5,3038.4,0.68430315]
[1763453231687,1.188404,3038.5,3038.4,0.68430315]
[1763453231898,0.405504,3038.4,3037.6,0.001]
[1763453232074,0.196,3037.7,3037.6,0.001]
[1763453232271,1.473,3037.7,3037.6,1.81488649]
[1763453232476,1.473,3037.7,3037.6,2.38226764]
[1763453232777,1.473,3037.7,3037.6,0.68567743]
[1763453233175,1.9079,3037.7,3037.6,0.68567743]
[1763453233514,0.7209,3037.7,3037.6,0.68567743]
[1763453233683,1.9089,3037.7,3037.6,0.68567743]
[1763453234518,2.314404,3037.7,3037.6,0.68640386]
[1763453234814,2.318704,3037.7,3037.6,0.68640386]
[1763453234987,2.318704,3037.7,3037.6,0.001]
[1763453235190,0.4306,3037.4,3037.0,0.001]
[1763453235416,0.831804,3037.1,3037.0,0.001]
[1763453235914,0.831804,3037.1,3036.2,1.14223971]
[1763453235915,0.405504,3037.0,3036.2,1.14223971]
[1763453236119,0.7816,3036.9,3036.3,0.68634859]
[1763453236278,0.522604,3036.6,3036.2,0.001]
[1763453236486,0.522604,3036.6,3036.3,0.68663703]
[1763453236687,1.014404,3036.6,3036.3,0.68663703]
[1763453237287,0.14,3037.2,3036.3,0.68663703]
[1763453237512,0.14,3037.2,3036.6,0.68663703]
[1763453237513,0.4875,3037.1,3036.6,0.68663703]
[1763453237809,0.04115903,3037.0,3036.7,0.68663703]
[1763453238066,0.7735,3037.1,3036.8,0.68663703]
[1763453238183,0.7735,3037.1,3036.9,0.68663703]
[1763453238383,0.286,3037.1,3037.0,0.68663703]
[1763453239113,0.405504,3037.0,3036.5,0.001]
[1763453239320,0.405504,3037.0,3036.6,0.68609568]
[1763453239530,0.4633,3036.9,3036.7,0.68609568]
[1763453239738,0.286,3037.1,3036.8,0.68609568]
[1763453239903,0.286,3037.0,3036.9,0.68609568]
[1763453240419,0.14,3037.2,3036.9,0.68609568]
[1763453240721,0.7493,3037.1,3037.0,0.68609568]
[1763453240920,0.286,3037.1,3037.0,0.68609568]
[1763453241224,1.474,3037.1,3037.0,0.68609568]
[1763453241591,1.9373,3037.1,3037.0,0.68609568]
[1763453242025,2.550534,3037.1,3037.0,0.68609568]
[1763453242328,2.550534,3037.1,3036.5,1.14223971]
[1763453242329,0.405504,3037.0,3036.5,0.001]
[1763453242508,0.405504,3037.0,3036.6,0.68805183]
[1763453242705,0.4633,3037.1,3036.7,0.68805183]
[1763453243013,1.474,3037.0,3036.8,1.82929154]
[1763453243216,0.868804,3037.1,3037.0,0.001]
[1763453243428,0.4633,3037.7,3037.0,0.68905183]
[1763453243733,0.1675,3040.0,3037.0,0.68905183]
[1763453243734,0.002,3038.3,3037.6,1.14123971]
[1763453243890,0.286,3038.2,3037.7,1.82927087]
[1763453244098,0.286,3038.2,3037.8,1.82927087]
[1763453244295,0.286,3038.2,3037.2,3.15756708]
[1763453244296,0.286,3038.2,3037.9,1.82927087]
[1763453244531,0.286,3038.2,3038.0,0.68803116]
[1763453244836,0.002,3038.3,3038.1,0.68803116]
[1763453245042,0.286,3038.2,3038.1,1.14626176]
[1763453245204,0.286,3038.2,3038.1,1.83400955]
[1763453245405,0.7493,3038.2,3038.1,0.68774779]
[1763453245606,0.286,3038.2,3038.1,0.68774779]
[1763453245821,0.691504,3038.2,3038.1,0.68774779]
[1763453246033,1.154804,3038.2,3038.1,0.68774779]
[1763453246496,1.154804,3038.2,3036.9,1.37079264]
[1763453246497,1.154804,3038.2,3037.4,1.14626176]
[1763453246838,0.286,3038.2,3037.5,0.68884175]
[1763453247037,0.286,3038.2,3037.6,0.68884175]
[1763453247333,0.286,3038.2,3037.7,1.83510351]
[1763453247538,0.286,3038.2,3037.3,0.90699264]
[1763453247539,0.002,3038.3,3037.8,1.83510351]
[1763453247707,0.286,3038.2,3037.9,0.68884175]
[1763453247916,0.691504,3038.2,3038.0,0.68884175]
[1763453248210,0.691504,3038.2,3038.1,0.68884175]
[1763453248612,1.154804,3038.2,3038.1,0.68884175]
[1763453249423,0.691504,3038.2,3038.1,0.68884175]
[1763453249623,0.002,3038.3,3038.1,0.68884175]
[1763453249820,0.90699264,3039.2,3038.2,0.68884175]
[1763453250136,0.90699264,3039.2,3037.8,1.69659021]
[1763453250137,0.691504,3039.1,3038.3,0.68884175]
[1763453250449,0.691504,3039.1,3038.4,0.68884175]
[1763453250765,0.286,3039.0,3038.5,0.68884175]
[1763453250919,0.286,3039.0,3038.6,0.68884175]
[1763453251120,1.33696123,3039.6,3038.7,0.68884175]
[1763453251424,1.31249664,3039.4,3038.8,0.68884175]
[1763453251625,0.02446459,3039.3,3038.2,1.14626176]
[1763453251955,1.31249664,3039.2,3038.3,0.68920667]
[1763453252254,1.31249664,3039.2,3038.4,0.68920667]
[1763453252417,1.31249664,3039.2,3038.5,0.68920667]
[1763453252622,1.31249664,3039.2,3038.6,0.68920667]
[1763453252623,0.97064768,3039.1,3038.6,0.68920667]
[1763453252917,0.97064768,3039.1,3038.1,1.14626176]
[1763453252918,0.405504,3038.9,3038.1,1.14626176]
[1763453253144,0.405504,3038.9,3038.2,0.68943237]
[1763453253353,1.474,3038.8,3038.3,0.68943237]
[1763453253651,1.474,3038.8,3038.4,0.68943237]
[1763453253857,1.474,3038.8,3038.5,0.68943237]
[1763453254061,1.474,3038.8,3038.4,0.86168169]
[1763453254062,1.474,3038.8,3038.6,0.68943237]
[1763453254229,1.188,3039.8,3038.7,1.55111406]
[1763453254560,2.38099264,3039.7,3038.8,1.55111406]
[1763453254763,2.7378919,3039.7,3038.9,0.68943237]
[1763453255056,1.474,3039.7,3039.1,0.86168169]
[1763453255221,1.474,3039.7,3038.9,1.14626176]
[1763453255564,1.474,3039.7,3039.1,0.86077004]
[1763453255865,1.474,3039.7,3039.2,0.68861603]
[1763453256022,1.474,3039.7,3038.8,0.86077004]
[1763453256023,8.39398019,3039.5,3038.8,0.86077004]
[1763453256227,0.405504,3039.4,3038.4,0.86077004]
[1763453256540,0.405504,3039.5,3038.5,0.68898267]
[1763453256744,0.405504,3039.5,3038.1,0.96077003]
[1763453256955,0.19385064,3039.4,3038.2,0.68907517]
[1763453257129,0.19385064,3039.4,3038.3,0.68907517]
[1763453257325,0.19385064,3039.4,3038.4,0.68907517]
[1763453257568,0.16938605,3039.4,3038.5,0.68907517]
[1763453257867,0.16938605,3039.4,3038.1,0.96077003]
[1763453258176,0.16938605,3039.4,3038.2,0.68881823]
[1763453258347,1.474,3039.3,3038.3,0.68881823]
[1763453258539,1.49846459,3039.3,3038.4,0.68881823]
[1763453258742,1.474,3039.3,3038.5,0.68881823]
[1763453259049,1.474,3039.3,3038.6,0.68881823]
[1763453259266,1.474,3039.2,3038.7,0.68881823]
[1763453259478,1.188,3039.2,3038.8,1.64958826]
[1763453259683,0.286,3039.1,3039.0,0.09999999]
[1763453259842,0.286,3039.1,3039.0,0.78881822]
[1763453260041,0.286,3039.1,3039.0,2.76528826]
[1763453260238,0.286,3039.1,3039.0,2.31423965]
[1763453260589,0.286,3039.1,3039.0,2.76553965]
[1763453261265,0.90699264,3040.7,3039.3,0.09999999]
[1763453261266,0.002,3039.4,3039.3,0.09999999]
[1763453261431,0.002,3039.4,3039.3,0.78881822]
[1763453261632,1.474,3039.4,3039.3,2.85527998]
[1763453261865,0.002,3039.8,3039.7,0.09999999]
[1763453262042,0.002,3039.8,3039.7,1.25771822]
[1763453262247,0.002,3039.8,3039.7,1.70901822]
[1763453262976,0.288,3039.8,3039.7,2.61601086]
[1763453263482,0.288,3039.8,3039.7,0.68881823]
[1763453263780,0.288,3039.8,3039.2,0.09999999]
[1763453263957,0.02446459,3039.7,3039.3,0.68728291]
[1763453264156,0.02446459,3039.7,3039.4,0.68728291]
[1763453264369,0.02446459,3039.7,3039.2,0.09999999]
[1763453264884,0.02446459,3039.7,3038.5,0.85917837]
[1763453265051,0.286,3039.6,3038.5,0.09999999]
[1763453265248,0.31046459,3039.6,3038.5,0.09999999]
[1763453265673,0.286,3039.6,3038.5,0.09999999]
[1763453266597,0.286,3039.6,3038.5,0.55129999]
[1763453267555,0.286,3039.5,3039.0,0.09999999]
[1763453267751,0.286,3039.5,3038.6,0.09999999]
[1763453267950,0.286,3039.5,3038.7,0.6882007]
[1763453268155,0.286,3039.5,3038.6,0.09999999]
[1763453268580,0.286,3039.5,3038.8,0.09999999]
[1763453269483,0.286,3039.5,3038.6,0.09999999]
[1763453269794,0.286,3039.5,3038.7,0.6888254]
[1763453269997,0.286,3039.5,3038.9,0.09999999]
[1763453270166,0.286,3039.5,3038.7,0.09999999]
[1763453270371,0.286,3039.5,3038.9,0.09999999]
[1763453271058,0.286,3039.5,3038.6,0.09999999]
[1763453271262,0.286,3039.5,3038.8,0.09999999]
[1763453271263,1.188,3039.4,3038.8,0.09999999]
[1763453271973,0.002,3039.8,3038.9,0.09999999]
[1763453272172,1.473,3039.7,3039.1,0.09999999]
[1763453272395,0.002,3039.8,3039.2,0.68988216]
[1763453272701,1.188,3039.7,3039.2,0.68988216]
[1763453272881,1.188,3039.7,3039.3,0.55129999]
[1763453272882,0.285,3039.6,3039.3,0.55129999]
[1763453273261,0.285,3039.6,3039.4,0.69018383]
[1763453273661,0.285,3039.6,3039.4,1.14148383]
[1763453273861,0.285,3039.6,3039.5,0.4689]
[1763453274094,0.285,3039.6,3039.5,0.9202]
[1763453274408,0.285,3039.6,3039.3,0.09999999]
[1763453274618,0.285,3039.6,3039.4,0.69015699]
[1763453275119,0.285,3039.6,3039.5,1.02019999]
[1763453275324,0.002,3039.8,3039.7,0.09999999]
[1763453275652,1.475,3039.8,3039.7,1.02019999]
[1763453275901,0.002,3039.8,3039.7,1.71035698]
[1763453276089,1.475,3039.8,3039.7,1.71035698]
[1763453276622,0.002,3039.8,3039.7,1.71035698]
[1763453276903,1.475,3039.8,3039.7,3.47652799]
[1763453277101,1.475,3039.8,3039.7,2.61734962]
[1763453279286,1.475,3039.8,3039.7,3.76361138]
[1763453279287,0.002,3039.8,3039.7,3.76361138]
[1763453279602,1.475,3039.8,3039.7,3.76361138]
[1763453279792,1.475,3039.8,3039.7,4.31393983]
[1763453280375,1.475,3039.8,3039.7,2.61734962]
[1763453280575,1.475,3039.8,3039.7,4.31393983]
[1763453280993,1.474,3039.8,3039.7,4.71944383]
[1763453281199,1.474,3039.8,3039.7,3.02285362]
[1763453281410,0.002,3040.1,3040.0,0.09999999]
[1763453281625,1.189,3040.1,3040.0,3.8890177]
[1763453281802,1.189,3040.1,3040.0,4.3403177]
[1763453282008,1.189,3040.1,3040.0,2.61734962]
[1763453282220,1.189,3040.1,3040.0,3.76613418]
[1763453282605,1.474,3040.1,3040.0,2.61734962]
[1763453283234,1.474,3040.1,3040.0,3.76613418]
[1763453284148,0.002,3040.2,3040.0,3.05574835]
[1763453284356,0.002,3042.0,3041.5,0.09999999]
[1763453284565,1.474,3041.6,3041.5,0.09999999]
[1763453285028,1.474,3041.6,3041.5,1.02019999]
[1763453285340,1.474,3041.6,3041.5,0.78887733]
[1763453285504,1.474,3041.6,3041.3,0.09999999]
[1763453285700,0.02446459,3041.5,3041.3,0.09999999]
[1763453285932,1.474,3041.6,3041.3,0.09999999]
[1763453286963,0.002,3041.6,3041.5,0.56389999]
[1763453287138,1.474,3041.6,3041.5,1.25180473]
[1763453287339,1.189,3041.6,3041.5,2.62279737]
[1763453287545,1.474,3041.6,3041.5,2.62279737]
[1763453287743,1.474,3041.6,3041.5,4.7503924]
[1763453288442,1.474,3041.6,3041.5,3.02830137]
[1763453289127,1.474,3041.6,3041.5,4.7503924]
[1763453289449,1.474,3041.6,3041.5,2.12130873]
[1763453289629,1.187,3041.6,3041.5,1.09340874]
[1763453289830,0.90699264,3044.3,3041.5,1.65730873]
[1763453290029,0.08,3043.8,3042.8,0.09999999]
[1763453290228,0.08,3044.2,3043.1,0.09999999]
[1763453290968,0.284,3044.1,3043.1,0.09999999]
[1763453291262,1.187,3044.0,3043.1,0.09999999]
[1763453291431,0.08,3044.2,3044.0,0.09999999]
[1763453291763,1.471,3044.1,3044.0,0.09999999]
[1763453291962,1.267,3045.0,3044.5,0.09999999]
[1763453291963,0.08,3045.0,3044.5,0.09999999]
[1763453292136,0.3,3045.5,3043.3,1.048061]
[1763453292137,1.471,3044.9,3043.3,1.048061]
[1763453292469,1.471,3044.9,3042.5,0.857461]
[1763453292470,1.31249664,3044.2,3042.5,0.857461]
[1763453292628,1.31249664,3044.2,3042.5,0.09999999]
[1763453292629,1.40826305,3044.1,3042.5,0.09999999]
[1763453292831,1.472,3044.0,3043.4,0.09999999]
[1763453293173,0.405504,3043.8,3042.1,0.1906]
[1763453293366,0.405504,3043.8,3042.5,0.09999999]
[1763453293569,0.405504,3043.8,3042.1,0.29059999]
[1763453293874,0.405504,3043.8,3042.5,0.09999999]
[1763453294283,1.472,3043.7,3042.5,0.09999999]
[1763453294429,8.75714719,3044.7,3043.1,0.09999999]
[1763453294634,1.31249664,3044.5,3043.1,0.09999999]
[1763453294832,1.31249664,3044.5,3043.1,0.29059999]
[1763453295240,0.405504,3044.3,3043.1,0.29059999]
[1763453295763,2.659,3044.4,3043.1,0.29059999]
[1763453296070,0.405504,3044.2,3043.1,0.09999999]
[1763453296243,0.405504,3044.2,3042.7,0.09999999]
[1763453296430,0.405504,3044.2,3042.3,0.464]
[1763453296632,0.405504,3044.2,3043.1,0.09999999]
[1763453296834,0.405504,3044.2,3042.8,0.09999999]
[1763453297030,0.405504,3044.2,3042.3,0.464]
[1763453297345,0.405504,3044.2,3043.1,0.09999999]
[1763453297767,0.405504,3044.2,3042.7,0.09999999]
[1763453297969,0.102,3045.5,3045.4,0.1906]
[1763453298317,1.574,3045.5,3045.4,0.09999999]
[1763453298598,1.574,3045.5,3045.4,0.56399999]
[1763453298816,1.576,3045.5,3045.4,0.56399999]
[1763453300596,1.576,3045.5,3045.4,0.09999999]
[1763453300764,1.576,3045.5,3045.1,0.1906]
[1763453300964,0.102,3045.5,3045.4,0.09999999]
[1763453301165,0.002,3046.2,3045.7,0.09999999]
[1763453301366,1.775,3045.8,3045.7,0.09999999]
[1763453301595,1.775,3045.8,3045.7,0.56439999]
[1763453303672,1.60312004,3045.8,3045.7,0.56439999]
[1763453304281,0.13012004,3045.8,3045.7,0.96990399]
[1763453304599,0.002,3046.5,3046.4,0.50550399]
[1763453304798,0.08,3047.5,3047.3,0.09999999]
[1763453305001,8.75714719,3049.9,3047.4,0.1913]
[1763453305199,1.68653324,3051.4,3049.3,0.09999999]
[1763453305200,1.473,3049.8,3049.3,0.09999999]
[1763453305839,1.7721,3049.8,3049.3,0.09999999]
[1763453305991,0.47631,3049.7,3048.8,0.09999999]
[1763453306196,0.47631,3049.7,3049.0,0.09999999]
[1763453306398,0.17721,3049.7,3049.3,0.09999999]
[1763453306694,0.464121,3049.6,3049.1,0.09999999]
[1763453307303,0.1301,3050.2,3049.2,0.4644]
[1763453307642,1.472,3050.0,3049.9,0.09999999]
[1763453307942,0.287,3050.0,3049.9,0.09999999]
[1763453308107,1.7711,3050.0,3049.3,0.09999999]
[1763453308311,0.30741,3049.9,3049.3,0.09999999]
[1763453308508,0.30741,3049.9,3049.1,0.09999999]
[1763453308707,0.30741,3049.9,3049.3,0.09999999]
[1763453308946,0.60651,3049.9,3049.1,0.09999999]
[1763453309105,0.60651,3049.9,3048.3,0.4644]
[1763453309106,0.405504,3049.8,3048.3,0.09999999]
[1763453309305,0.912455,3049.8,3048.0,0.29129999]
[1763453309562,0.405504,3049.6,3048.0,0.1913]
[1763453309746,0.405504,3049.4,3048.0,0.09999999]
[1763453309921,0.0629,3048.1,3047.6,0.09999999]
[1763453310100,0.286,3048.0,3047.6,0.09999999]
[1763453310439,0.5851,3048.0,3047.6,0.09999999]
[1763453310654,0.5851,3048.0,3047.3,0.09999999]
[1763453310941,0.106,3049.0,3047.8,0.09999999]
[1763453311113,0.4292,3049.9,3048.9,0.09999999]
[1763453311314,1.7711,3049.8,3048.9,0.09999999]
[1763453311703,0.2991,3049.7,3048.9,0.09999999]
[1763453312701,0.2991,3049.7,3048.4,0.1913]
[1763453312702,0.2991,3049.7,3048.6,0.09999999]
[1763453313039,0.405504,3049.6,3048.6,0.09999999]
[1763453313358,0.106,3048.7,3048.6,0.09999999]
[1763453313570,0.17711,3049.6,3048.6,0.09999999]
[1763453313854,1.471,3049.5,3049.0,0.09999999]
[1763453314634,0.2991,3049.4,3049.0,0.09999999]
[1763453314822,0.2991,3049.4,3048.6,0.09999999]
[1763453315029,0.17701,3049.3,3048.6,0.09999999]
[1763453315241,1.471,3049.2,3048.6,0.09999999]
[1763453316351,1.471,3049.2,3047.9,0.4644]
[1763453316352,0.106,3048.7,3048.4,0.09999999]
[1763453316522,0.286,3048.6,3048.4,0.09999999]
[1763453316726,0.286,3048.6,3047.9,0.4644]
[1763453316971,0.106,3048.7,3048.4,0.09999999]
[1763453317174,0.002,3049.6,3048.9,0.09999999]
[1763453317323,0.002,3049.6,3048.5,0.6436]
[1763453317324,1.47,3049.5,3049.1,0.09999999]
[1763453317726,0.002,3049.6,3049.5,0.09999999]
[1763453317957,1.186,3049.6,3049.5,0.09999999]
[1763453318142,1.472,3049.6,3049.5,0.56289999]
[1763453321638,1.472,3049.6,3048.9,0.4629]
[1763453322157,1.472,3049.6,3049.5,0.09999999]
[1763453322565,1.472,3049.6,3049.5,0.56289999]
[1763453322955,1.472,3049.6,3048.3,0.44638086]
[1763453322956,0.0629,3047.6,3047.1,1.71492201]
[1763453323166,1.71492201,3046.8,3045.5,0.001]
[1763453323326,3.49277201,3046.7,3045.5,0.21466968]
[1763453323526,3.49277201,3046.7,3045.5,0.001]
[1763453323527,2.45961478,3046.6,3045.5,0.001]
[1763453323730,2.75841478,3046.6,3045.5,0.001]
[1763453323939,0.90699264,3046.4,3045.5,0.001]
[1763453324151,0.38139253,3046.3,3045.5,0.001]
[1763453324461,0.289,3046.2,3045.5,0.001]
[1763453324665,0.289,3046.1,3045.5,0.001]
[1763453325033,0.1299,3046.5,3045.5,0.001]
[1763453325225,0.289,3046.4,3045.5,0.001]
[1763453326331,0.5878,3046.4,3045.5,0.001]
[1763453326547,0.289,3046.3,3045.5,0.001]
[1763453326860,0.289,3046.2,3045.5,0.001]
[1763453328034,0.2988,3046.1,3045.5,0.001]
[1763453328229,8.74169339,3046.0,3045.5,0.001]
[1763453328446,0.90404934,3045.9,3045.5,0.001]
[1763453328780,0.289,3045.8,3045.5,0.001]
[1763453328951,0.289,3045.7,3045.5,0.001]
[1763453329479,0.289,3045.6,3045.5,0.001]
[1763453330476,0.288,3045.6,3045.5,0.001]
[1763453331082,0.90699264,3046.1,3045.5,0.001]
[1763453331280,1.185,3046.0,3045.6,0.4629]
[1763453331481,0.288,3045.9,3045.6,0.4629]
[1763453332459,0.288,3045.9,3045.5,0.001]
[1763453336881,1.473,3045.8,3045.5,0.001]
[1763453337452,0.405504,3046.4,3045.5,0.001]
[1763453337656,0.90699264,3046.2,3045.5,0.001]
[1763453337878,0.35649926,3046.1,3045.5,0.001]